bitfinex/quotes_ETHUSD_20241030
["timestamp","ask_amount","ask_price","bid_price","bid_amount"]
[1730247346839,3.7974,2633.4,2633.0,0.7698]
[1730247347156,8.31406594,2633.5,2633.0,0.7698]
[1730247347457,3.79744,2633.4,2633.0,0.7698]
[1730247347967,3.79756,2633.3,2633.0,0.7698]
[1730247348119,3.79744,2633.4,2633.0,0.7698]
[1730247348315,4.54839859,2633.4,2633.0,0.7698]
[1730247348562,3.79794,2633.0,2632.9,0.0536917]
[1730247348731,7.60264,2633.0,2632.9,0.0536917]
[1730247349058,11.31478594,2633.0,2632.9,0.0536917]
[1730247349417,6.71214594,2633.0,2632.9,0.0536917]
[1730247349618,0.75095859,2633.4,2632.9,0.0536917]
[1730247349844,3.79735,2633.5,2632.9,0.0536917]
[1730247350122,3.71214594,2633.4,2632.9,0.0536917]
[1730247350319,3.71214594,2633.2,2632.9,0.0536917]
[1730247351050,7.50980594,2633.2,2632.9,0.0536917]
[1730247351230,3.71214594,2633.2,2632.9,0.0536917]
[1730247352054,7.50983594,2633.2,2632.9,0.0536917]
[1730247352828,7.51008594,2633.0,2632.9,0.0536917]
[1730247353224,10.51008594,2633.0,2632.9,0.0536917]
[1730247358033,1.13073459,2633.1,2632.9,0.0536917]
[1730247358231,3.79771,2633.2,2632.9,0.0536917]
[1730247358461,3.71214594,2633.1,2632.9,0.0536917]
[1730247358775,0.01,2633.6,2633.0,0.7867]
[1730247358776,7.50933594,2633.6,2633.0,0.7867]
[1730247358961,3.71214594,2633.6,2633.0,0.7867]
[1730247359471,3.71214594,2633.4,2633.0,0.7867]
[1730247361534,3.71214594,2633.6,2633.0,0.7867]
[1730247361735,3.71214594,2633.6,2633.2,0.00913055]
[1730247363075,3.71214594,2633.6,2633.3,0.761]
[1730247369859,3.71214594,2633.8,2633.4,0.00913055]
[1730247370071,0.788,2634.2,2633.7,0.761]
[1730247370275,7.50822594,2634.3,2633.8,0.00913055]
[1730247370587,3.71214594,2634.3,2633.8,0.00913055]
[1730247372180,3.71214594,2634.5,2633.9,0.761]
[1730247372352,3.71214594,2634.5,2634.1,0.00913055]
[1730247373177,3.71214594,2634.3,2634.1,0.00913055]
[1730247373878,3.71214594,2634.5,2634.1,0.00913055]
[1730247376287,8.29630594,2634.3,2633.7,0.761]
[1730247376594,3.79667,2633.9,2633.5,0.761]
[1730247376764,7.50868594,2634.0,2633.5,0.761]
[1730247376765,7.50895594,2633.8,2633.5,0.761]
[1730247376963,8.63950553,2633.8,2633.5,0.761]
[1730247377560,4.84269553,2633.8,2633.5,0.761]
[1730247378254,8.63950553,2633.8,2633.5,0.761]
[1730247378590,8.63950553,2633.8,2633.4,0.00913055]
[1730247380057,3.79695,2633.7,2633.3,0.761]
[1730247380294,4.73970055,2633.7,2633.3,0.761]
[1730247384062,8.53673055,2633.7,2633.3,0.761]
[1730247384257,4.73970055,2633.7,2633.1,0.761]
[1730247384458,7.50894594,2633.8,2633.4,0.00913055]
[1730247385102,3.0,2634.0,2633.5,0.761]
[1730247385314,3.71214594,2634.1,2633.6,0.00913055]
[1730247385462,7.50811594,2634.4,2633.8,0.00913055]
[1730247386168,3.7961,2634.3,2633.8,0.00913055]
[1730247387701,7.50808594,2634.4,2633.8,0.00913055]
[1730247388513,3.79608,2634.3,2633.8,0.00913055]
[1730247389778,3.79607,2634.3,2633.8,0.00913055]
[1730247389973,4.96443929,2634.3,2633.8,0.00913055]
[1730247392192,3.79623,2634.2,2633.8,0.00913055]
[1730247393116,3.79701,2633.7,2633.4,0.775]
[1730247393277,7.50937594,2633.5,2633.1,0.78413055]
[1730247393782,3.71214594,2633.5,2633.1,0.78413055]
[1730247394214,8.32685594,2633.7,2633.4,0.00913055]
[1730247394840,9.53921653,2633.7,2633.4,0.00913055]
[1730247395114,8.72151653,2633.7,2633.4,0.00913055]
[1730247396108,3.79701,2633.7,2633.4,0.00913055]
[1730247396414,7.50889594,2633.9,2633.4,0.00913055]
[1730247396587,3.79686,2633.8,2633.5,0.775]
[1730247396793,3.71214594,2633.7,2633.5,0.775]
[1730247398885,0.8177,2633.6,2633.0,0.00913055]
[1730247399126,0.8177,2633.6,2632.9,0.0536917]
[1730247399127,3.71214594,2633.1,2632.9,0.0536917]
[1730247400227,7.50997594,2633.1,2632.9,0.0536917]
[1730247401620,3.71214594,2633.1,2632.9,0.0536917]
[1730247401787,7.50996594,2633.1,2632.9,0.0536917]
[1730247401988,3.71214594,2633.1,2632.9,0.0536917]
[1730247402385,7.50997594,2633.1,2632.9,0.0536917]
[1730247403819,3.71214594,2633.1,2632.9,0.0536917]
[1730247404231,3.71214594,2633.1,2632.9,0.06282225]
[1730247404596,7.51001594,2633.1,2632.9,0.0536917]
[1730247405420,4.55234,2633.0,2632.9,0.0536917]
[1730247405737,7.55234,2633.0,2632.9,0.0536917]
[1730247406498,6.79794,2633.0,2632.9,0.0536917]
[1730247406835,4.84291553,2633.1,2632.9,0.8270917]
[1730247406836,3.71214594,2633.1,2632.9,0.8270917]
[1730247413536,7.50996594,2633.1,2632.9,0.0536917]
[1730247414165,3.71214594,2633.1,2632.9,0.0536917]
[1730247417134,7.50995594,2633.1,2632.9,0.0536917]
[1730247417454,4.54892259,2633.0,2632.9,0.0536917]
[1730247417752,3.79794,2633.0,2632.9,0.0536917]
[1730247418629,3.71214594,2633.1,2632.9,0.0536917]
[1730247418825,7.50996594,2633.1,2632.9,0.0536917]
[1730247419822,3.79794,2633.0,2632.9,0.0536917]
[1730247420451,7.50994594,2633.1,2632.9,0.0536917]
[1730247420664,3.71214594,2633.1,2632.9,0.0536917]
[1730247421245,3.71214594,2633.1,2632.9,0.8774917]
[1730247421442,7.50958594,2633.4,2632.9,0.8774917]
[1730247421656,3.71214594,2633.4,2632.9,0.8774917]
[1730247421854,3.71214594,2633.1,2632.9,0.8774917]
[1730247428328,4.52104594,2633.1,2632.9,0.0536917]
[1730247428530,3.79794,2633.0,2632.9,0.0536917]
[1730247429325,8.31885594,2633.1,2632.9,0.0536917]
[1730247429530,13.34848153,2633.1,2632.9,0.0536917]
[1730247429756,9.55054153,2633.1,2632.9,0.0536917]
[1730247430652,3.79794,2633.0,2632.9,0.0536917]
[1730247434278,5.75273153,2633.1,2632.9,0.0536917]
[1730247434575,1.66275558,2633.0,2632.9,0.0536917]
[1730247434773,2.7926487,2633.0,2632.9,0.0536917]
[1730247437410,0.7811,2633.4,2632.9,0.0536917]
[1730247437597,1.66275558,2633.1,2632.9,0.0536917]
[1730247444247,1.66275558,2633.1,2633.0,0.28459614]
[1730247445116,1.66275558,2633.1,2633.0,0.28459593]
[1730247445703,0.7811,2634.0,2633.4,0.79083055]
[1730247445921,1.66275558,2633.6,2633.4,0.79083055]
[1730247446651,0.7811,2634.0,2633.4,0.79083055]
[1730247446652,3.71244485,2633.9,2633.4,0.79083055]
[1730247447003,3.71244485,2633.9,2633.5,0.28443683]
[1730247447241,3.71244485,2633.6,2633.4,0.79083055]
[1730247449264,4.08368933,2633.6,2633.4,0.79083055]
[1730247450174,3.71244485,2633.6,2633.4,0.7817]
[1730247450380,3.71244485,2633.6,2633.4,0.79083055]
[1730247456215,3.71244485,2633.6,2633.4,0.7817]
[1730247456512,3.71244485,2633.6,2633.4,0.79083055]
[1730247456876,3.71244485,2633.6,2633.2,0.77153055]
[1730247457118,3.71244485,2633.6,2633.4,0.00913055]
[1730247466723,1.66181357,2633.5,2633.4,0.00913055]
[1730247471730,1.66181357,2633.5,2633.3,3.79743]
[1730247472088,1.66181357,2633.5,2633.4,0.00913055]
[1730247474190,1.66181357,2633.5,2633.4,3.80650055]
[1730247475414,1.66181357,2633.5,2633.3,3.7975]
[1730247475618,1.66181357,2633.5,2633.4,0.00913055]
[1730247475815,1.66181357,2633.5,2633.3,3.7975]
[1730247476432,1.66181357,2633.5,2632.9,0.0536917]
[1730247476433,3.79782,2633.1,2632.9,0.0536917]
[1730247476615,0.82,2633.4,2632.9,0.0536917]
[1730247476616,7.50134914,2633.0,2632.9,0.0536917]
[1730247476817,10.94156714,2633.0,2632.9,0.0536917]
[1730247478567,0.82,2632.2,2631.8,0.00913055]
[1730247478770,1.66181357,2631.9,2631.7,0.8313]
[1730247478938,1.66181357,2631.9,2631.8,0.00913055]
[1730247480028,1.66181357,2632.1,2631.8,0.00913055]
[1730247480570,4.53676864,2632.4,2631.8,0.00913055]
[1730247480773,5.3703065,2632.4,2631.8,0.00913055]
[1730247481265,4.53676864,2632.4,2632.1,0.00913055]
[1730247481472,3.71676864,2632.4,2632.1,0.83643055]
[1730247482330,3.71676864,2632.4,2632.1,0.00913055]
[1730247483227,7.51559864,2632.4,2632.1,0.00913055]
[1730247483427,4.60401,2632.6,2631.9,0.83643055]
[1730247483428,3.71676864,2632.2,2631.9,0.83643055]
[1730247485739,3.71676864,2632.2,2632.1,0.00913055]
[1730247485988,4.60401,2632.6,2632.1,0.00913055]
[1730247485989,3.71676864,2632.4,2632.1,0.00913055]
[1730247486277,4.52216864,2632.6,2632.1,0.00913055]
[1730247489397,3.71676864,2632.4,2632.1,0.00913055]
[1730247492271,4.5488385,2632.4,2632.1,0.00913055]
[1730247492675,0.8054,2632.6,2632.1,0.00913055]
[1730247492676,4.52216864,2632.6,2632.1,0.00913055]
[1730247494516,3.71676864,2632.6,2632.2,0.7897]
[1730247494724,8.70973185,2633.0,2632.3,0.00913055]
[1730247494870,5.38674183,2633.0,2632.6,0.7897]
[1730247495071,4.58774183,2633.0,2632.6,0.7897]
[1730247495375,3.71676864,2633.0,2632.7,0.00913055]
[1730247497778,3.71676864,2632.8,2632.7,0.00913055]
[1730247498428,3.71676864,2632.8,2632.2,0.79883055]
[1730247498429,4.51576864,2632.8,2632.2,0.79883055]
[1730247498588,3.71676864,2632.5,2632.2,0.79883055]
[1730247499120,3.71676864,2632.5,2632.2,0.00913055]
[1730247499323,4.4682995,2632.5,2632.2,0.00913055]
[1730247499715,3.0,2632.2,2631.6,0.00913055]
[1730247499879,3.71676864,2632.1,2631.6,0.00913055]
[1730247502835,7.51607864,2632.1,2631.6,0.00913055]
[1730247502982,11.31540864,2632.1,2631.6,0.00913055]
[1730247503321,7.51607864,2632.1,2631.6,0.00913055]
[1730247503635,1.05160786,2632.0,2631.6,0.00913055]
[1730247506535,4.85060786,2632.0,2631.5,0.7897]
[1730247506690,3.799,2632.0,2631.5,0.7897]
[1730247507815,7.51630864,2631.9,2631.5,0.7897]
[1730247508019,7.51630864,2631.9,2631.3,0.79883055]
[1730247510141,3.71676864,2631.9,2631.3,0.79883055]
[1730247510342,0.75157686,2631.8,2631.3,0.79883055]
[1730247512516,4.55134686,2631.8,2631.3,0.79883055]
[1730247512724,3.71676864,2631.6,2631.3,0.79883055]
[1730247514847,4.4683455,2631.8,2631.3,0.79883055]
[1730247516325,0.75157686,2631.8,2631.3,0.79883055]
[1730247516528,3.0,2632.1,2631.5,0.00913055]
[1730247516738,3.71676864,2632.2,2631.6,0.7563]
[1730247518315,7.51588864,2632.2,2631.6,0.7563]
[1730247519730,3.71676864,2632.2,2631.6,0.7563]
[1730247519926,0.7573,2632.6,2631.9,0.7563]
[1730247520125,7.51521864,2632.7,2631.9,0.7563]
[1730247520339,8.7222805,2632.7,2632.0,0.00913055]
[1730247520566,8.7222805,2632.7,2632.1,0.7563]
[1730247521231,3.79853,2632.6,2632.1,0.7563]
[1730247521448,3.0,2632.6,2632.1,0.7563]
[1730247524724,0.8059,2633.4,2632.4,0.8169]
[1730247524920,7.51471864,2633.0,2632.4,0.8169]
[1730247525143,0.56638953,2632.9,2632.4,0.8169]
[1730247525825,4.28315817,2632.9,2632.4,0.8169]
[1730247527149,6.79781,2633.1,2632.7,0.8169]
[1730247527150,3.71676864,2633.1,2632.7,0.8169]
[1730247528561,4.60337,2633.4,2632.8,0.00913055]
[1730247528562,3.71676864,2633.2,2632.8,0.00913055]
[1730247529673,7.51442864,2633.2,2632.8,0.00913055]
[1730247529964,3.71676864,2633.0,2632.8,0.00913055]
[1730247530207,3.71676864,2633.2,2632.8,0.00913055]
[1730247530333,4.5487825,2633.2,2632.8,0.00913055]
[1730247531126,3.71676864,2633.0,2632.8,0.00913055]
[1730247531575,7.51480864,2633.0,2632.8,0.00913055]
[1730247531930,3.79809,2632.9,2632.5,0.8169]
[1730247532164,4.5488445,2632.8,2632.5,0.8169]
[1730247533487,4.5488445,2632.8,2632.7,0.00913055]
[1730247544599,2.49488327,2632.8,2632.7,0.00913055]
[1730247544899,1.66280741,2632.8,2632.7,0.00913055]
[1730247545072,1.66280741,2632.8,2632.1,0.80443055]
[1730247545273,1.66280741,2632.5,2632.1,0.80443055]
[1730247547575,1.66280741,2632.3,2632.1,0.00913055]
[1730247547795,0.7676,2632.6,2632.1,0.00913055]
[1730247547999,1.66280741,2632.3,2632.1,0.00913055]
[1730247550315,0.7676,2632.2,2631.6,0.00913055]
[1730247550494,1.66280741,2631.8,2631.6,0.00913055]
[1730247554419,4.34230074,2632.1,2631.6,0.00913055]
[1730247554420,3.71769855,2632.0,2631.6,0.00913055]
[1730247554816,3.71769855,2632.0,2631.8,0.00913055]
[1730247555148,0.54304074,2632.1,2631.8,0.00913055]
[1730247555351,0.50283393,2632.0,2631.8,0.00913055]
[1730247555943,4.22053248,2632.0,2631.4,0.00913055]
[1730247556256,3.0,2631.9,2631.4,0.00913055]
[1730247560997,4.48019855,2631.8,2631.4,0.00913055]
[1730247561148,4.48019855,2631.8,2631.3,0.8022]
[1730247561349,3.71769855,2631.6,2631.3,0.8022]
[1730247561748,3.71769855,2631.6,2631.4,0.00913055]
[1730247561991,0.74801986,2631.7,2631.4,0.00913055]
[1730247562193,0.74801986,2631.7,2631.3,0.76133055]
[1730247562563,4.26533393,2632.0,2631.3,0.76133055]
[1730247563085,1.26533393,2632.0,2631.3,0.76133055]
[1730247565167,5.06472393,2632.0,2631.3,0.76133055]
[1730247565776,1.26533393,2632.0,2631.3,0.76133055]
[1730247566093,5.06472393,2632.0,2631.3,0.76133055]
[1730247566456,1.26533393,2632.0,2631.3,0.76133055]
[1730247566671,0.50283393,2632.0,2631.3,0.76133055]
[1730247567371,0.7625,2631.8,2631.3,0.76133055]
[1730247567991,4.56218,2631.8,2631.3,0.76133055]
[1730247570002,0.7625,2631.8,2631.3,0.76133055]
[1730247571337,4.56218,2631.8,2631.3,0.76133055]
[1730247572195,0.7625,2631.8,2631.3,0.76133055]
[1730247572395,2.05607499,2631.8,2631.3,0.76133055]
[1730247572636,2.05607499,2631.8,2631.3,0.71133055]
[1730247573434,2.05607499,2631.8,2631.3,0.66133055]
[1730247574462,1.66413683,2631.5,2631.3,0.66133055]
[1730247576137,1.66413683,2631.5,2630.9,0.28357787]
[1730247576335,1.66413683,2631.1,2630.8,0.7649]
[1730247576579,1.66413683,2630.9,2630.8,0.7649]
[1730247578139,0.7597,2631.5,2630.8,0.7649]
[1730247578339,1.66413683,2631.6,2630.9,0.7649]
[1730247578577,1.66413683,2631.6,2630.8,1.66413683]
[1730247578578,1.66413683,2631.6,2631.0,0.31890876]
[1730247578790,1.66413683,2631.6,2631.1,0.7649]
[1730247580546,3.71816481,2631.8,2631.1,0.7649]
[1730247584299,3.71816481,2631.8,2631.1,1.0484451]
[1730247584451,3.71816481,2631.8,2631.0,0.7631]
[1730247584648,3.71816481,2631.8,2631.2,0.7631]
[1730247585448,4.84589129,2631.8,2631.2,0.7631]
[1730247589367,3.71816481,2631.8,2631.2,0.7631]
[1730247590395,3.71816481,2631.8,2631.3,0.28410395]
[1730247590627,3.71816481,2631.8,2631.2,0.7631]
[1730247590779,3.71816481,2631.8,2631.3,0.28410397]
[1730247590975,3.71816481,2631.8,2631.2,0.7631]
[1730247591315,3.71816481,2631.8,2631.3,0.28410392]
[1730247591512,4.84589229,2631.8,2631.2,0.7631]
[1730247591677,4.84589229,2631.8,2631.3,0.2841875]
[1730247591877,4.84589229,2631.8,2631.2,0.7631]
[1730247592107,4.84589229,2631.8,2631.3,0.28418689]
[1730247592413,4.84589229,2631.8,2631.2,0.7631]
[1730247592719,4.84589229,2631.8,2631.3,0.2842637]
[1730247592878,4.84589229,2631.8,2631.2,0.7631]
[1730247593077,4.84589229,2631.8,2631.3,0.2842642]
[1730247593311,4.84589229,2631.8,2631.4,0.284349]
[1730247593488,4.84589229,2631.8,2631.2,0.7631]
[1730247593684,4.84589229,2631.8,2631.3,0.28434887]
[1730247593886,4.84589229,2631.8,2631.4,0.28434887]
[1730247594102,4.84589229,2631.8,2631.2,0.7631]
[1730247594417,4.84589229,2631.8,2631.3,0.28434875]
[1730247594787,4.84589229,2631.8,2631.4,0.28434875]
[1730247594992,4.84589229,2631.8,2631.5,1.04752154]
[1730247595194,3.71816481,2631.8,2631.5,0.7631]
[1730247596920,3.71816481,2631.8,2631.6,0.2845382]
[1730247597101,3.71816481,2631.8,2631.5,0.7631]
[1730247597306,3.71816481,2631.8,2631.6,0.28453832]
[1730247597484,3.71816481,2631.8,2631.5,0.7631]
[1730247598136,3.71816481,2631.8,2631.6,0.28454942]
[1730247598341,3.71816481,2631.8,2631.5,0.7631]
[1730247598535,3.71816481,2631.8,2631.6,0.28456082]
[1730247598744,4.08998129,2631.8,2631.5,0.7631]
[1730247598909,3.71816481,2631.6,2631.3,0.45532119]
[1730247599242,3.71816481,2631.6,2631.4,0.28457563]
[1730247599399,3.71816481,2631.6,2631.1,0.7631]
[1730247599599,0.83253648,2631.5,2631.2,0.73991591]
[1730247599796,3.71816481,2631.4,2631.3,0.73991591]
[1730247600015,3.71816481,2631.4,2631.3,0.28458304]
[1730247600411,3.71816481,2631.4,2631.1,0.7631]
[1730247600642,4.63268648,2631.5,2631.2,0.28462126]
[1730247600844,0.84327165,2631.4,2630.7,1.02464342]
[1730247601047,1.66485786,2631.1,2630.8,1.23960089]
[1730247601208,1.66485786,2631.1,2630.9,0.45540089]
[1730247601410,0.37181648,2631.8,2631.1,0.7842]
[1730247601738,6.79953,2631.9,2631.2,0.73998346]
[1730247601940,6.79953,2631.9,2631.4,0.7842]
[1730247602515,1.66485786,2631.5,2631.4,0.7842]
[1730247602728,1.66485786,2631.5,2631.4,1.06879799]
[1730247603154,3.7852,2632.0,2631.4,1.06879799]
[1730247603355,3.7852,2632.0,2631.4,0.7842]
[1730247603356,1.66485786,2631.5,2631.4,0.7842]
[1730247603556,1.66485786,2631.5,2631.4,0.28459801]
[1730247604524,1.66485786,2631.5,2631.4,0.28459595]
[1730247604728,1.66485786,2631.5,2631.0,1.35337688]
[1730247604729,1.66485786,2631.5,2631.0,0.7842]
[1730247604931,1.66485786,2631.2,2631.1,0.73996356]
[1730247606755,1.66485786,2631.5,2631.1,0.73996356]
[1730247606955,1.66485786,2631.5,2631.2,1.52416356]
[1730247607122,1.66485786,2631.5,2631.3,0.28460137]
[1730247607322,1.66485786,2631.5,2631.2,0.7842]
[1730247607556,1.66485786,2631.5,2631.3,0.28458737]
[1730247607980,1.66485786,2631.5,2631.4,0.28458737]
[1730247608146,1.66485786,2631.5,2631.2,0.7842]
[1730247608455,1.66485786,2631.5,2631.3,0.2845874]
[1730247608616,1.66485786,2631.5,2631.4,0.2845874]
[1730247611158,1.66485786,2631.5,2631.4,0.28459112]
[1730247612159,1.66485786,2631.6,2631.5,0.7842]
[1730247612332,1.66485786,2631.8,2631.5,1.06879112]
[1730247612532,1.66485786,2631.8,2631.6,0.28459112]
[1730247612731,1.66485786,2631.8,2631.5,0.7842]
[1730247612732,1.66485786,2631.8,2631.7,0.28457066]
[1730247613317,1.66485786,2631.8,2631.5,0.7842]
[1730247613547,1.66485786,2631.8,2631.6,0.28456642]
[1730247613750,1.66485786,2631.8,2631.7,0.28456642]
[1730247614954,1.66485786,2631.8,2631.7,0.28455976]
[1730247618073,1.66485786,2631.8,2631.5,0.7842]
[1730247618220,0.7627,2631.9,2631.6,0.28454448]
[1730247618428,1.66485786,2631.7,2631.4,0.45527162]
[1730247618779,1.66485786,2631.5,2631.3,0.8017]
[1730247619120,1.66485786,2631.5,2631.4,0.28454304]
[1730247619320,2.42755786,2631.5,2631.4,0.28454304]
[1730247619664,1.66485786,2631.5,2631.0,0.8017]
[1730247619851,0.7627,2631.7,2631.0,0.8017]
[1730247619852,1.66485786,2631.3,2631.1,0.7399107]
[1730247620159,1.66485786,2631.3,2631.2,0.7399107]
[1730247621066,1.66485786,2631.3,2631.2,0.73989588]
[1730247625850,1.66485786,2631.3,2631.2,0.4555694]
[1730247626052,1.66485786,2631.6,2631.3,0.8017]
[1730247626254,3.02199088,2632.0,2631.5,0.8017]
[1730247626255,1.66485786,2631.8,2631.5,0.8017]
[1730247626589,1.66485786,2631.8,2631.6,0.28473088]
[1730247626955,1.66485786,2631.8,2631.7,0.28473088]
[1730247629386,1.66485786,2631.8,2631.7,0.28465294]
[1730247630679,1.66485786,2631.8,2631.7,1.10825294]
[1730247631355,1.66485786,2631.8,2631.7,1.10821887]
[1730247632246,1.74601584,2631.8,2631.7,1.10821887]
[1730247633053,1.74601584,2631.8,2631.7,0.8236]
[1730247633386,1.74601584,2631.8,2631.7,1.10819025]
[1730247634579,6.88583742,2631.8,2631.7,0.28459025]
[1730247634767,0.7856,2631.4,2631.1,0.45538395]
[1730247635095,1.66485786,2631.2,2631.0,0.8236]
[1730247635294,1.66485786,2631.2,2631.1,0.28463414]
[1730247635648,1.74491057,2631.2,2631.1,0.28463414]
[1730247636901,0.08005271,2631.2,2631.1,0.28463414]
[1730247637190,1.66485786,2631.4,2631.1,0.28463414]
[1730247637401,0.07991744,2631.2,2631.0,0.8236]
[1730247637595,1.66485786,2631.4,2631.1,0.28455435]
[1730247637752,1.66485786,2631.4,2631.0,0.8236]
[1730247637955,1.66485786,2631.4,2631.1,0.2845547]
[1730247638186,1.66485786,2631.4,2631.0,0.8236]
[1730247638373,1.66485786,2631.4,2631.1,0.28453087]
[1730247638584,1.66485786,2631.2,2631.0,0.8236]
[1730247638766,1.66485786,2631.2,2631.1,0.28453163]
[1730247639681,6.79750865,2631.2,2631.1,0.28453163]
[1730247640009,6.79750865,2631.2,2630.3,0.1363947]
[1730247640010,4.11531572,2631.2,2630.5,0.8236]
[1730247640299,1.66485786,2630.6,2630.5,0.8236]
[1730247640680,1.66485786,2630.6,2630.5,1.10805598]
[1730247640882,1.66485786,2630.8,2630.5,1.5633394]
[1730247641084,1.66485786,2630.8,2630.6,0.28445598]
[1730247641301,1.66485786,2631.0,2630.5,1.63390958]
[1730247641484,1.66485786,2631.0,2630.6,0.28435734]
[1730247641686,1.66485786,2631.0,2630.5,1.63390958]
[1730247641870,1.66485786,2631.0,2630.6,0.284358]
[1730247642070,1.66485786,2630.8,2630.5,1.27888342]
[1730247642276,1.66485786,2630.8,2630.6,0.28435859]
[1730247642605,7.5211342,2631.1,2630.5,1.27888342]
[1730247642759,9.03185262,2631.1,2630.6,0.28428847]
[1730247642961,9.03185262,2631.1,2630.5,1.27888342]
[1730247643258,3.7204142,2630.6,2630.5,0.45528342]
[1730247643569,4.5060142,2630.6,2630.5,0.45528342]
[1730247643771,3.0,2630.8,2630.5,0.45528342]
[1730247644482,3.7204142,2630.9,2630.5,0.45528342]
[1730247645060,3.7204142,2630.9,2630.3,0.1263947]
[1730247645696,3.7204142,2631.1,2630.4,0.8107]
[1730247646263,3.7204142,2631.1,2630.5,0.07602263]
[1730247646490,0.07970578,2631.0,2630.5,0.07602263]
[1730247646692,0.07970578,2631.0,2630.4,0.8107]
[1730247646860,0.07970578,2631.0,2630.5,0.07602123]
[1730247647067,0.07970578,2631.0,2630.4,0.8107]
[1730247647590,0.07970578,2631.0,2630.4,1.09468263]
[1730247647793,0.07970578,2631.0,2630.4,1.09468353]
[1730247648366,3.7204142,2630.7,2630.4,0.28398353]
[1730247648567,3.7204142,2630.5,2630.3,0.1263947]
[1730247649173,3.88143703,2630.4,2630.3,0.1263947]
[1730247649401,0.07973703,2630.4,2630.3,0.1263947]
[1730247650680,3.0,2630.7,2630.3,0.1263947]
[1730247650874,0.0796329,2630.6,2630.3,0.1263947]
[1730247652415,11.3117142,2630.4,2630.3,0.1263947]
[1730247652882,11.3913367,2630.4,2630.3,0.1263947]
[1730247655096,3.80213,2630.1,2630.0,0.5]
[1730247655415,15.11209931,2630.1,2630.0,0.5]
[1730247655568,13.28409504,2630.1,2630.0,0.5]
[1730247655971,0.07954091,2630.1,2630.0,0.5]
[1730247656221,3.7204142,2630.4,2630.0,0.5]
[1730247656385,0.0741077,2630.1,2630.0,0.5]
[1730247656567,3.7204142,2630.4,2630.0,0.5]
[1730247656775,0.0741077,2630.1,2630.0,0.5]
[1730247657092,3.7204142,2630.4,2630.0,0.5]
[1730247657294,0.0741077,2630.1,2630.0,0.5]
[1730247658077,3.7204142,2630.4,2630.0,0.5]
[1730247658280,0.0741077,2630.1,2630.0,0.5]
[1730247658473,3.7204142,2630.4,2630.0,0.5]
[1730247659114,0.0741077,2630.3,2630.0,0.5]
[1730247660917,0.0741077,2630.3,2630.1,0.8086]
[1730247661212,3.7204142,2630.6,2630.1,0.8086]
[1730247661373,0.0741077,2630.2,2630.1,0.8086]
[1730247661570,3.7204142,2630.6,2630.1,0.8086]
[1730247661815,0.0741688,2630.2,2630.1,0.8086]
[1730247662016,3.7204142,2630.6,2630.1,0.8086]
[1730247662178,0.0741793,2630.2,2630.1,0.8086]
[1730247662487,6.7204142,2630.8,2630.1,0.88463467]
[1730247662687,0.0741793,2630.2,2630.1,0.88463308]
[1730247662917,3.7204142,2630.8,2630.1,0.8086]
[1730247663216,0.0741793,2630.2,2630.1,0.8086]
[1730247663391,3.7204142,2630.8,2630.1,0.8086]
[1730247663590,0.0741793,2630.2,2630.1,0.8086]
[1730247663781,3.7204142,2630.8,2630.1,0.8086]
[1730247663975,0.07422817,2630.2,2630.1,0.8086]
[1730247664184,3.7204142,2630.6,2630.1,0.8086]
[1730247664422,0.07422817,2630.2,2630.1,0.8086]
[1730247664715,3.7204142,2630.6,2630.1,0.8086]
[1730247664924,0.07422817,2630.2,2630.1,0.8086]
[1730247665277,3.7204142,2630.6,2630.1,0.8086]
[1730247665514,0.07422994,2630.2,2630.1,0.8086]
[1730247665714,3.7204142,2630.6,2630.1,0.8086]
[1730247665924,0.07422994,2630.5,2630.1,0.8086]
[1730247671932,0.07422994,2630.5,2630.1,0.88463479]
[1730247672282,8.3006642,2631.2,2630.1,0.8086]
[1730247672520,0.07422994,2630.4,2630.1,0.8086]
[1730247672816,8.3006642,2631.2,2630.1,0.8086]
[1730247672985,0.07424564,2630.3,2630.1,0.8186]
[1730247673184,3.8007,2631.1,2630.1,0.8186]
[1730247673377,9.51080262,2631.2,2630.2,0.8086]
[1730247674216,9.51080262,2631.2,2630.4,0.8086]
[1730247675013,0.7797,2631.2,2630.4,0.8086]
[1730247675237,8.3003642,2631.4,2630.4,0.8086]
[1730247675588,3.7204142,2631.2,2630.4,0.8086]
[1730247675790,3.7204142,2631.2,2630.5,0.07602155]
[1730247676328,0.0742788,2631.1,2630.5,0.01]
[1730247676538,0.0742788,2631.1,2630.6,0.8086]
[1730247676827,7.5202042,2631.8,2630.9,0.8086]
[1730247677041,7.5202042,2631.8,2631.0,0.55]
[1730247677042,3.7204142,2631.6,2631.0,0.55]
[1730247677618,0.07451096,2631.5,2631.0,0.55]
[1730247678819,0.07451096,2631.5,2630.9,0.8086]
[1730247678820,3.7204142,2631.3,2630.9,0.8086]
[1730247679188,0.07464707,2631.2,2630.9,0.8086]
[1730247679491,3.7204142,2631.3,2630.9,0.8086]
[1730247679841,4.09990672,2631.5,2630.9,0.8086]
[1730247679994,0.07464009,2631.2,2630.9,0.8086]
[1730247680194,4.09990672,2631.5,2630.9,0.8086]
[1730247680529,0.86795767,2631.4,2630.9,0.8086]
[1730247680828,0.07464009,2631.3,2630.9,0.8086]
[1730247683030,4.09990672,2631.5,2630.9,0.8086]
[1730247683720,0.07464009,2631.4,2630.9,0.8086]
[1730247698462,1.66459485,2631.2,2630.9,0.8086]
[1730247698875,0.07463309,2631.1,2630.9,0.8086]
[1730247716169,0.07463309,2631.1,2631.0,0.28442651]
[1730247718257,0.07463309,2631.1,2631.0,0.28467999]
[1730247720599,4.63082309,2631.1,2631.0,0.28467999]
[1730247720757,0.7555,2630.8,2630.5,0.45580361]
[1730247720964,1.66459485,2630.6,2630.2,0.8282]
[1730247721299,1.66459485,2630.6,2630.3,0.74073953]
[1730247721457,0.07458601,2630.5,2630.4,0.74073953]
[1730247722291,0.07458601,2630.5,2630.4,0.28489982]
[1730247725401,0.07458601,2630.5,2630.4,3.79295931]
[1730247725574,0.07458601,2630.5,2630.4,4.40905864]
[1730247725779,1.66459485,2631.3,2630.4,3.65687406]
[1730247725980,0.07194211,2631.2,2630.6,0.8282]
[1730247726211,0.07194211,2631.2,2630.8,0.8282]
[1730247726506,0.07194211,2631.2,2630.9,0.74005812]
[1730247726680,0.7555,2631.6,2631.0,0.28489982]
[1730247726876,0.7555,2631.6,2631.2,0.8282]
[1730247726877,0.51497683,2631.6,2631.2,0.8282]
[1730247727081,2.25914313,2631.7,2631.3,0.28444342]
[1730247727387,1.66459485,2631.7,2631.2,0.8282]
[1730247727984,1.66459485,2631.5,2631.3,0.28441611]
[1730247728218,1.66459485,2631.5,2631.2,0.8282]